fUSD/lending_fUSD_20250108
["ID","MTS","AMOUNT","RATE_DAILY","PERIOD"]
[348109898,1736323832700,-500.0,9.973e-05,2]
[348109899,1736323832709,-904.84544935,9.985e-05,2]
[348109900,1736323832719,-1000.0,9.99e-05,2]
[348109901,1736323832728,-1000.0,9.99e-05,3]
[348109902,1736323832738,-1000.0,9.99e-05,4]
[348109903,1736323832747,-362.71843352,9.998e-05,2]
[348109904,1736323832757,-503.12,9.998e-05,2]
[348109905,1736323832767,-500.0,9.998e-05,2]
[348109906,1736323832776,-500.0,9.998e-05,2]
[348109907,1736323832790,-500.0,9.998e-05,2]
[348109908,1736323832799,-500.0,9.998e-05,2]
[348109909,1736323832808,-500.0,9.998e-05,2]
[348109910,1736323832819,-500.0,9.998e-05,2]
[348109911,1736323832830,-500.0,9.998e-05,2]
[348109912,1736323832840,-500.0,9.998e-05,2]
[348109913,1736323832849,-500.0,9.998e-05,2]
[348109914,1736323832859,-500.0,9.998e-05,2]
[348109915,1736323832868,-249.42653801,9.998e-05,2]
[348109916,1736323832915,-250.57346199,9.998e-05,2]
[348109918,1736323832925,-500.0,9.998e-05,2]
[348109920,1736323832934,-500.0,9.998e-05,2]
[348109922,1736323832943,-520.94,9.998e-05,2]
[348109924,1736323832953,-500.0,9.998e-05,2]
[348109926,1736323832962,-500.0,9.998e-05,2]
[348109928,1736323832972,-500.0,9.998e-05,2]
[348109930,1736323832982,-500.0,9.998e-05,2]
[348109932,1736323832992,-150.18653801,9.998e-05,2]
[348109934,1736323833003,-647.48346199,9.998e-05,2]
[348109936,1736323833013,-434.40653801,9.998e-05,2]
[348109940,1736323833043,-65.59346199,9.998e-05,2]
[348109942,1736323833053,-500.0,9.998e-05,2]
[348109944,1736323833065,-500.0,9.998e-05,2]
[348109946,1736323833075,-783.57,9.998e-05,2]
[348109948,1736323833084,-500.0,9.998e-05,2]
[348109950,1736323833093,-500.0,9.998e-05,2]
[348109952,1736323833103,-500.0,9.998e-05,2]
[348109954,1736323833113,-500.0,9.998e-05,2]
[348109956,1736323833122,-500.0,9.998e-05,2]
[348109958,1736323833132,-500.0,9.998e-05,2]
[348109961,1736323833141,-500.0,9.998e-05,2]
[348109964,1736323833151,-500.0,9.998e-05,2]
[348109967,1736323833160,-500.0,9.998e-05,2]
[348109970,1736323833170,-500.0,9.998e-05,2]
[348109973,1736323833181,-500.0,9.998e-05,2]
[348109977,1736323833191,-500.0,9.998e-05,2]
[348109979,1736323833201,-500.0,9.998e-05,2]
[348109982,1736323833211,-500.0,9.998e-05,2]
[348109985,1736323833221,-500.0,9.998e-05,2]
[348109988,1736323833232,-500.0,9.998e-05,2]
[348109991,1736323833242,-500.0,9.998e-05,2]
[348109994,1736323833251,-500.0,9.998e-05,2]
[348109997,1736323833262,-500.0,9.998e-05,2]
[348110001,1736323833272,-500.0,9.998e-05,2]
[348110003,1736323833282,-500.0,9.998e-05,2]
[348110006,1736323833292,-1136.35,9.998e-05,2]
[348110009,1736323833301,-500.0,9.998e-05,2]
[348110013,1736323833314,-500.0,9.998e-05,2]
[348110016,1736323833323,-500.0,9.998e-05,2]
[348110019,1736323833333,-500.0,9.998e-05,2]
[348110023,1736323833343,-500.0,9.998e-05,2]
[348110025,1736323833353,-500.0,9.998e-05,2]
[348110029,1736323833363,-500.0,9.998e-05,2]
[348110032,1736323833373,-500.0,9.998e-05,2]
[348110035,1736323833383,-500.0,9.998e-05,2]
[348110037,1736323833392,-500.0,9.998e-05,2]
[348110040,1736323833402,-500.0,9.998e-05,2]
[348110042,1736323833411,-500.0,9.998e-05,2]
[348110044,1736323833421,-500.0,9.998e-05,2]
[348110045,1736323833430,-500.0,9.998e-05,2]
[348110046,1736323833440,-1600.17,9.998e-05,2]
[348110047,1736323833449,-500.0,9.998e-05,2]
[348110048,1736323833459,-1775.02,9.998e-05,2]
[348110049,1736323833469,-500.0,9.998e-05,2]
[348110050,1736323833480,-500.0,9.998e-05,2]
[348110051,1736323833490,-500.0,9.998e-05,2]
[348110052,1736323833500,-500.0,9.998e-05,2]
[348110053,1736323833509,-500.0,9.998e-05,2]
[348110054,1736323833519,-500.0,9.998e-05,2]
[348110055,1736323833528,-500.0,9.998e-05,2]
[348110056,1736323833538,-500.0,9.998e-05,2]
[348110057,1736323833548,-500.0,9.998e-05,2]
[348110058,1736323833558,-500.0,9.998e-05,2]
[348110059,1736323833569,-500.0,9.998e-05,2]
[348110060,1736323833579,-830.13,9.998e-05,2]
[348110061,1736323833589,-500.0,9.998e-05,2]
[348110062,1736323833598,-500.0,9.998e-05,2]
[348110063,1736323833608,-500.0,9.998e-05,2]
[348110064,1736323833618,-500.0,9.998e-05,2]
[348110065,1736323833629,-523.4,9.998e-05,2]
[348110066,1736323833640,-500.0,9.998e-05,2]
[348110067,1736323833649,-500.0,9.998e-05,2]
[348110068,1736323833659,-1327.38,9.998e-05,2]
[348110069,1736323833670,-500.0,9.998e-05,2]
[348110070,1736323833681,-887.38,9.998e-05,5]
[348110071,1736323833691,-500.0,9.998e-05,2]
[348110072,1736323833700,-500.0,9.998e-05,2]
[348110073,1736323833711,-500.0,9.998e-05,2]
[348110074,1736323833722,-500.0,9.998e-05,2]
[348110075,1736323833731,-500.0,9.998e-05,2]
[348110076,1736323833741,-500.0,9.998e-05,2]
[348110077,1736323833751,-500.0,9.998e-05,2]
[348110078,1736323833761,-523.6,9.998e-05,2]
[348110079,1736323833771,-500.0,9.998e-05,2]
[348110080,1736323833781,-500.0,9.998e-05,2]
[348110081,1736323833793,-500.0,9.998e-05,2]
[348110082,1736323833802,-500.0,9.998e-05,2]
[348110083,1736323833814,-500.0,9.998e-05,2]
[348110084,1736323833826,-2889.42,9.998e-05,2]
[348110085,1736323833836,-840.48,9.998e-05,2]
[348110086,1736323833845,-500.0,9.998e-05,2]
[348110087,1736323833856,-537.07,9.998e-05,2]
[348110088,1736323833865,-500.0,9.998e-05,2]
[348110089,1736323833875,-787.23,9.998e-05,2]
[348110090,1736323833885,-1151.2,9.998e-05,2]
[348110091,1736323833895,-1355.51,9.998e-05,2]
[348110092,1736323833905,-500.0,9.998e-05,2]
[348110093,1736323833915,-500.0,9.998e-05,2]
[348110094,1736323833924,-2350.29,9.998e-05,2]
[348110095,1736323833933,-685.72,9.998e-05,2]
[348110096,1736323833942,-972.17,9.998e-05,2]
[348110097,1736323833951,-500.0,9.998e-05,2]
[348110098,1736323833961,-1125.59,9.998e-05,2]
[348110099,1736323833970,-500.0,9.998e-05,2]
[348110100,1736323833980,-738.92,9.998e-05,2]
[348110101,1736323833989,-842.9,9.998e-05,2]
[348110102,1736323833999,-500.0,9.998e-05,2]
[348110103,1736323834213,-968.83,9.998e-05,2]
[348110104,1736323834224,-1324.52,9.998e-05,2]
[348110105,1736323834234,-457.183177,9.998e-05,2]
[348110106,1736323834243,-940.6,9.998e-05,2]
[348110107,1736323834253,-631.35,9.998e-05,2]
[348110108,1736323834262,-316.71531784,9.998e-05,2]
[348110109,1736323834271,-500.0,9.998e-05,2]
[348110110,1736323834281,-704.4,9.998e-05,2]
[348110111,1736323834290,-500.0,9.998e-05,2]
[348110112,1736323834299,-311.786056,9.998e-05,2]
[348110113,1736323834308,-500.0,9.998e-05,2]
[348110114,1736323834318,-157.68863,9.998e-05,2]
[348110115,1736323834328,-500.0,9.998e-05,2]
[348110116,1736323834337,-156.364715,9.998e-05,2]
[348110117,1736323834347,-500.0,9.998e-05,2]
[348110118,1736323834356,-500.0,9.998e-05,2]
[348110119,1736323834365,-500.0,9.998e-05,2]
[348110120,1736323834374,-500.0,9.998e-05,2]
[348110121,1736323834384,-1260.8,9.998e-05,2]
[348110122,1736323834393,-500.0,9.998e-05,2]
[348110123,1736323834402,-500.0,9.998e-05,2]
[348110124,1736323834412,-739.01,9.998e-05,2]
[348110125,1736323834421,-500.0,9.998e-05,2]
[348110126,1736323834431,-500.0,9.998e-05,2]
[348110127,1736323834440,-2497.99,9.998e-05,2]
[348110128,1736323834450,-500.0,9.998e-05,2]
[348110129,1736323834460,-1066.36,9.998e-05,2]
[348110130,1736323834469,-500.0,9.998e-05,2]
[348110131,1736323834478,-500.0,9.998e-05,2]
[348110132,1736323834488,-500.0,9.998e-05,2]
[348110133,1736323834497,-500.0,9.998e-05,2]
[348110134,1736323834507,-638.85,9.998e-05,2]
[348110135,1736323834516,-1873.88,9.998e-05,2]
[348110136,1736323834526,-1713.63,9.998e-05,2]
[348110137,1736323834536,-500.0,9.998e-05,2]
[348110138,1736323834545,-1098.55,9.998e-05,2]
[348110139,1736323834554,-500.0,9.998e-05,2]
[348110140,1736323834564,-1998.21,9.998e-05,2]
[348110141,1736323834574,-500.0,9.999e-05,2]
[348110142,1736323834583,-371.57,9.999e-05,2]
[348110143,1736323834592,-501.26270725,9.999e-05,2]
[348110144,1736323834602,-500.0,9.999e-05,2]
[348110145,1736323834611,-500.0,9.999e-05,2]
[348110146,1736323834621,-500.0,9.999e-05,2]
[348110147,1736323834631,-500.0,9.999e-05,2]
[348110148,1736323834641,-476.19988045,9.999e-05,2]
[348110149,1736323834650,-501.96391337,9.999e-05,2]
[348110150,1736323834659,-500.0,9.999e-05,2]
[348110151,1736323834669,-500.0,9.999e-05,2]
[348110152,1736323834679,-500.0,9.999e-05,2]
[348110153,1736323834688,-501.57172581,9.999e-05,2]
[348110154,1736323834698,-153.14791083,9.999e-05,2]
[348110155,1736323834708,-500.0,9.999e-05,2]
[348110156,1736323834718,-500.0,9.999e-05,2]
[348110157,1736323834728,-501.49572027,9.999e-05,2]
[348110158,1736323834737,-515.65014651,9.999e-05,2]
[348110159,1736323834747,-500.0,9.999e-05,2]
[348110160,1736323834756,-500.0,9.999e-05,2]
[348110161,1736323834766,-500.0,9.999e-05,2]
[348110162,1736323834775,-500.0,9.999e-05,2]
[348110163,1736323834788,-502.83131452,9.999e-05,2]
[348110164,1736323834797,-528.64,9.999e-05,2]
[348110165,1736323834807,-500.0,9.999e-05,2]
[348110166,1736323834819,-500.0,9.999e-05,2]
[348110167,1736323834829,-559.06,9.999e-05,2]
[348110168,1736323834840,-500.0,9.999e-05,2]
[348110169,1736323834850,-598.99,9.999e-05,2]
[348110170,1736323834859,-500.0,9.999e-05,2]
[348110171,1736323834869,-501.60439625,9.999e-05,2]
[348110172,1736323834879,-502.44896581,9.999e-05,2]
[348110173,1736323834888,-501.7174243,9.999e-05,2]
[348110174,1736323834900,-507.98,9.999e-05,2]
[348110175,1736323834909,-500.0,9.999e-05,2]
[348110176,1736323834919,-500.0,9.999e-05,2]
[348110177,1736323834928,-500.0,9.999e-05,2]
[348110178,1736323834937,-500.0,9.999e-05,2]
[348110179,1736323834946,-500.0,9.999e-05,2]
[348110180,1736323834956,-500.0,9.999e-05,2]
[348110181,1736323834965,-500.0,9.999e-05,2]
[348110182,1736323834975,-500.0,9.999e-05,2]
[348110183,1736323834985,-504.60982216,9.999e-05,2]
[348110184,1736323834994,-500.0,9.999e-05,2]
[348110185,1736323835004,-500.0,9.999e-05,2]
[348110186,1736323835014,-500.0,9.999e-05,2]
[348110187,1736323835024,-598.99,9.999e-05,2]
[348110188,1736323835034,-500.0,9.999e-05,2]
[348110189,1736323835043,-500.0,9.999e-05,2]
[348110190,1736323835054,-500.0,9.999e-05,2]
[348110191,1736323835064,-500.0,9.999e-05,2]
[348110192,1736323835073,-500.0,9.999e-05,2]
[348110193,1736323835082,-525.32,9.999e-05,2]
[348110194,1736323835092,-506.53057063,9.999e-05,2]
[348110195,1736323835101,-500.0,9.999e-05,2]
[348110196,1736323835110,-500.0,9.999e-05,2]
[348110197,1736323835119,-500.0,9.999e-05,2]
[348110198,1736323835128,-500.0,9.999e-05,2]
[348110199,1736323835137,-584.30927998,9.999e-05,2]
[348110200,1736323835147,-500.0,9.999e-05,2]
[348110201,1736323835157,-523.16,9.999e-05,2]
[348110202,1736323835166,-500.0,9.999e-05,2]
[348110203,1736323835175,-509.12924721,9.999e-05,2]
[348110204,1736323835185,-500.0,9.999e-05,2]
[348110205,1736323835194,-500.0,9.999e-05,2]
[348110206,1736323835204,-571.52,9.999e-05,2]
[348110207,1736323835213,-500.0,9.999e-05,2]
[348110208,1736323835222,-500.0,9.999e-05,2]
[348110209,1736323835231,-500.0,9.999e-05,2]
[348110210,1736323835240,-500.0,9.999e-05,2]
[348110211,1736323835250,-500.0,9.999e-05,2]
[348110212,1736323835263,-500.0,9.999e-05,2]
[348110213,1736323835273,-598.99,9.999e-05,2]
[348110214,1736323835283,-504.22003714,9.999e-05,2]
[348110215,1736323835293,-500.0,9.999e-05,2]
[348110216,1736323835303,-500.0,9.999e-05,2]
[348110217,1736323835313,-520.83,9.999e-05,2]
[348110218,1736323835322,-500.0,9.999e-05,2]
[348110219,1736323835332,-500.0,9.999e-05,2]
[348110220,1736323835341,-500.0,9.999e-05,2]
[348110221,1736323835350,-500.0,9.999e-05,2]
[348110222,1736323835360,-519.96,9.999e-05,2]
[348110223,1736323835369,-500.0,9.999e-05,2]
[348110224,1736323835379,-500.0,9.999e-05,2]
[348110225,1736323835388,-500.0,9.999e-05,2]
[348110226,1736323835397,-500.0,9.999e-05,2]
[348110227,1736323835406,-500.0,9.999e-05,2]
[348110228,1736323835415,-500.0,9.999e-05,2]
[348110229,1736323835424,-284.01,9.999e-05,2]
[348110230,1736323835433,-500.0,9.999e-05,2]
[348110231,1736323835442,-157.96,9.999e-05,2]
[348110232,1736323835451,-500.0,9.999e-05,2]
[348110233,1736323835460,-500.0,9.999e-05,2]
[348110234,1736323835470,-500.0,9.999e-05,2]
[348110235,1736323835480,-500.0,9.999e-05,2]
[348110236,1736323835489,-500.0,9.999e-05,2]
[348110237,1736323835498,-500.0,9.999e-05,2]
[348110238,1736323835507,-500.0,9.999e-05,2]
[348110239,1736323835516,-500.0,9.999e-05,2]
[348110240,1736323835526,-316.24,9.999e-05,2]
[348110241,1736323835535,-500.0,9.999e-05,2]
[348110242,1736323835544,-500.0,9.999e-05,2]
[348110243,1736323835553,-500.0,9.999e-05,2]
[348110244,1736323835563,-500.0,9.999e-05,2]
[348110245,1736323835573,-500.0,9.999e-05,2]
[348110246,1736323835582,-500.0,9.999e-05,2]
[348110247,1736323835591,-500.0,9.999e-05,2]
[348110248,1736323835600,-264.75691643,9.999e-05,2]
[348110249,1736323835609,-500.0,9.999e-05,2]
[348110250,1736323835618,-500.0,9.999e-05,2]
[348110251,1736323835628,-500.0,9.999e-05,2]
[348110252,1736323835637,-500.0,9.999e-05,2]
[348110253,1736323835646,-507.46216314,9.999e-05,2]
[348110254,1736323835655,-500.0,9.999e-05,2]
[348110255,1736323835665,-500.0,9.999e-05,2]
[348110256,1736323835674,-621.90050864,9.999e-05,2]
[348110257,1736323835684,-500.0,9.999e-05,2]
[348110258,1736323835693,-500.0,9.999e-05,2]
[348110259,1736323835702,-500.0,9.999e-05,2]
[348110260,1736323835711,-855.26,9.999e-05,2]
[348110261,1736323835720,-500.0,9.999e-05,2]
[348110262,1736323835730,-500.0,9.999e-05,2]
[348110263,1736323835739,-500.0,9.999e-05,2]
[348110264,1736323835748,-500.0,9.999e-05,2]
[348110265,1736323835759,-500.0,9.999e-05,2]
[348110266,1736323835769,-233.84,9.999e-05,2]
[348110267,1736323835779,-500.0,9.999e-05,2]
[348110268,1736323835793,-500.0,9.999e-05,2]
[348110269,1736323835803,-500.0,9.999e-05,2]
[348110270,1736323835813,-588.83257426,9.999e-05,2]
[348110271,1736323835824,-828.98,9.999e-05,2]
[348110272,1736323835836,-500.0,9.999e-05,2]
[348110273,1736323835846,-500.0,9.999e-05,2]
[348110274,1736323835856,-500.0,9.999e-05,2]
[348110275,1736323835867,-481.91313978,9.999e-05,2]
[348110276,1736323835876,-500.0,9.999e-05,2]
[348110277,1736323835887,-500.0,9.999e-05,2]
[348110278,1736323835898,-500.0,9.999e-05,2]
[348110279,1736323835911,-500.0,9.999e-05,2]
[348110280,1736323835920,-500.0,9.999e-05,2]
[348110281,1736323835929,-500.0,9.999e-05,2]
[348110282,1736323835938,-1462.07,9.999e-05,2]
[348110283,1736323835947,-623.67498997,9.999e-05,2]
[348110284,1736323835956,-500.0,9.999e-05,2]
[348110285,1736323835965,-500.0,9.999e-05,2]
[348110286,1736323835974,-500.0,9.999e-05,2]
[348110287,1736323835983,-500.0,9.999e-05,2]
[348110288,1736323835991,-500.0,9.999e-05,2]
[348110289,1736323836002,-2657.77,9.999e-05,2]
[348110290,1736323836011,-500.0,9.999e-05,2]
[348110291,1736323836021,-500.0,9.999e-05,2]
[348110292,1736323836030,-500.0,9.999e-05,2]
[348110293,1736323836039,-500.0,9.999e-05,2]
[348110294,1736323836048,-500.0,9.999e-05,2]
[348110295,1736323836059,-500.0,9.999e-05,2]
[348110296,1736323836069,-1866.05,9.999e-05,2]
[348110297,1736323836078,-500.0,9.999e-05,2]
[348110298,1736323836087,-500.0,9.999e-05,2]
[348110299,1736323836096,-500.0,9.999e-05,2]
[348110300,1736323836106,-500.0,9.999e-05,2]
[348110301,1736323836115,-500.0,9.999e-05,2]
[348110302,1736323836126,-500.0,9.999e-05,2]
[348110303,1736323836135,-500.0,9.999e-05,2]
[348110304,1736323836144,-500.0,9.999e-05,2]
[348110305,1736323836153,-500.0,9.999e-05,2]
[348110306,1736323836162,-500.0,9.999e-05,2]
[348110307,1736323836172,-500.0,9.999e-05,2]
[348110308,1736323836180,-500.0,9.999e-05,2]
[348110309,1736323836189,-1260.05,9.999e-05,2]
[348110310,1736323836199,-500.0,9.999e-05,2]
[348110311,1736323836208,-500.0,9.999e-05,2]
[348110312,1736323836217,-500.0,9.999e-05,2]
[348110313,1736323836227,-500.0,9.999e-05,2]
[348110314,1736323836236,-500.0,9.999e-05,2]
[348110315,1736323836245,-500.0,9.999e-05,2]
[348110316,1736323836254,-500.0,9.999e-05,2]
[348110317,1736323836263,-567.8,9.999e-05,2]
[348110318,1736323836272,-500.0,9.999e-05,2]
[348110319,1736323836281,-500.0,9.999e-05,2]
[348110320,1736323836290,-500.0,9.999e-05,2]
[348110321,1736323836299,-500.0,9.999e-05,2]
[348110322,1736323836308,-500.0,9.999e-05,2]
[348110323,1736323836318,-500.0,9.999e-05,2]
[348110324,1736323836327,-500.0,9.999e-05,2]
[348110325,1736323836336,-500.0,9.999e-05,2]
[348110326,1736323836344,-500.0,9.999e-05,2]
[348110327,1736323836354,-500.0,9.999e-05,2]
[348110328,1736323836363,-500.0,9.999e-05,2]
[348110329,1736323836372,-500.0,9.999e-05,2]
[348110330,1736323836380,-500.0,9.999e-05,2]
[348110331,1736323836390,-500.0,9.999e-05,2]
[348110332,1736323836399,-500.0,9.999e-05,2]
[348110333,1736323836408,-500.0,9.999e-05,2]
[348110334,1736323836417,-500.0,9.999e-05,2]
[348110335,1736323836425,-500.0,9.999e-05,2]
[348110336,1736323836435,-1511.19,9.999e-05,2]
[348110337,1736323836444,-500.0,9.999e-05,2]
[348110338,1736323836454,-500.0,9.999e-05,2]
[348110339,1736323836463,-500.0,9.999e-05,2]
[348110340,1736323836472,-500.0,9.999e-05,2]
[348110341,1736323836481,-500.0,9.999e-05,2]
[348110342,1736323836490,-500.0,9.999e-05,2]
[348110343,1736323836499,-500.0,9.999e-05,2]
[348110344,1736323836508,-500.0,9.999e-05,2]
[348110345,1736323836517,-500.0,9.999e-05,2]
[348110346,1736323836527,-500.0,9.999e-05,2]
[348110347,1736323836536,-500.0,9.999e-05,2]
[348110348,1736323836545,-500.0,9.999e-05,2]
[348110349,1736323836554,-500.0,9.999e-05,2]
[348110350,1736323836563,-500.0,9.999e-05,2]
[348110351,1736323836572,-316.69,9.999e-05,2]
[348110352,1736323836581,-500.0,9.999e-05,2]
[348110353,1736323836590,-500.0,9.999e-05,2]
[348110354,1736323836600,-500.0,9.999e-05,2]
[348110355,1736323836609,-500.0,9.999e-05,2]
[348110356,1736323836618,-500.0,9.999e-05,2]
[348110357,1736323836628,-1253.25,9.999e-05,2]
[348110358,1736323836637,-500.0,9.999e-05,2]
[348110359,1736323836647,-500.0,9.999e-05,2]
[348110360,1736323836656,-503.15124528,9.999e-05,2]
[348110361,1736323836666,-796.77,9.999e-05,2]
[348110362,1736323836675,-500.0,9.999e-05,2]
[348110363,1736323836684,-500.0,9.999e-05,2]
[348110364,1736323836693,-500.0,9.999e-05,2]
[348110365,1736323836702,-500.0,9.999e-05,2]
[348110366,1736323836712,-500.0,9.999e-05,2]
[348110367,1736323836721,-500.0,9.999e-05,2]
[348110368,1736323836730,-500.0,9.999e-05,2]
[348110369,1736323836739,-500.0,9.999e-05,2]
[348110370,1736323836748,-500.0,9.999e-05,2]
[348110371,1736323836757,-500.0,9.999e-05,2]
[348110372,1736323836766,-500.0,9.999e-05,2]
[348110373,1736323836776,-500.0,9.999e-05,2]
[348110374,1736323836788,-500.0,9.999e-05,2]
[348110375,1736323836796,-500.0,9.999e-05,2]
[348110376,1736323836805,-500.0,9.999e-05,2]
[348110377,1736323836815,-500.0,9.999e-05,2]
[348110378,1736323836824,-503.86448063,9.999e-05,2]
[348110379,1736323836834,-500.0,9.999e-05,2]
[348110380,1736323836843,-500.0,9.999e-05,2]
[348110381,1736323836852,-500.0,9.999e-05,2]
[348110382,1736323836862,-640.4,9.999e-05,2]
[348110383,1736323836872,-500.0,9.999e-05,2]
[348110384,1736323836882,-500.0,9.999e-05,2]
[348110385,1736323836891,-503.30992833,9.999e-05,2]
[348110386,1736323836901,-500.0,9.999e-05,2]
[348110387,1736323836911,-500.0,9.999e-05,2]
[348110388,1736323836920,-500.0,9.999e-05,2]
[348110389,1736323836930,-500.0,9.999e-05,2]
[348110390,1736323836939,-524.89,9.999e-05,2]
[348110391,1736323836948,-500.0,9.999e-05,2]
[348110392,1736323836957,-6333.51585879,0.0001,2]
[348110393,1736323837222,-2000.0,0.0001,2]
[348110394,1736323838277,-500.0,9.998e-05,2]
[348110395,1736323838287,-500.0,9.999e-05,2]
[348110396,1736323838295,-1616.19,9.999e-05,2]
[348110397,1736323838305,-500.0,9.999e-05,2]
[348110398,1736323838315,-500.0,9.999e-05,2]
[348110399,1736323838325,-26365.21172711,0.0001,2]
[348110400,1736323838339,-3880.54090701,0.0001,2]
[348110401,1736323838349,-68839.30231841,0.0001,2]
[348110402,1736323838370,-479.36602412,0.0001,2]
[348110403,1736323838384,-1150.0429755,0.0001,2]
[348110404,1736323838483,-4792.18739999,0.0001,2]
[348110408,1736323840210,-500.0,9.998e-05,2]
[348110409,1736323840220,-49.73316218,9.998e-05,2]
[348110410,1736323840318,-450.26683782,9.998e-05,2]
[348110411,1736323840327,-220.84441661,9.999e-05,7]
[348110412,1736323840339,-279.15558339,9.999e-05,7]
[348110413,1736323840349,-500.0,9.999e-05,2]
[348110414,1736323840358,-215.82272661,9.999e-05,2]
[348110415,1736323840369,-284.17727339,9.999e-05,2]
[348110416,1736323840379,-263.8464054,0.0001,2]
[348110417,1736323840403,-8494.83524485,0.0001,2]
[348110418,1736323840414,-10968.87784998,0.0001,2]
[348110419,1736323840426,-500.0,0.0001,2]
[348110420,1736323840479,-771.21929082,0.0001,2]
[348110421,1736323840534,-2038.93816335,0.0001,2]
[348110422,1736323840546,-6979.6,0.0001,2]
[348110423,1736323840589,-355.72425126,0.0001,2]
[348110424,1736323840600,-395.92311807,0.0001,2]
[348110426,1736323843195,-1788.3,9.998e-05,2]
[348110427,1736323843205,-569.19,9.998e-05,2]
[348110428,1736323843214,-500.0,9.999e-05,2]
[348110429,1736323843223,-6986.92139733,0.0001,2]
[348110430,1736323843250,-369.04840763,0.0001,2]
[348110431,1736323843261,-6177.18706618,0.0001,2]
[348110432,1736323843306,-28783.09509876,0.0001,2]
[348110433,1736323843318,-25229.92355078,0.0001,2]
[348110434,1736323843364,-8032.15772057,0.0001,2]
[348110435,1736323843376,-16969.54342202,0.0001,2]
[348110436,1736323843416,-3833.52,0.0001,2]
[348110437,1736323843427,-758.88439545,0.0001,2]
[348110438,1736323843472,-705067.86226019,0.0001,2]
[348110439,1736323843528,-608.78640333,0.0001,2]
[348110440,1736323843540,-6053.01259267,0.0001,2]
[348110441,1736323843552,-12538.32830649,0.0001,2]
[348110442,1736323846285,-500.0,9.998e-05,2]
[348110443,1736323846294,-500.0,9.998e-05,2]
[348110444,1736323846303,-1831.69,9.998e-05,2]
[348110445,1736323846312,-500.0,9.999e-05,2]
[348110446,1736323846323,-500.0,9.999e-05,2]
[348110447,1736323846332,-971.26742686,0.0001,2]
[348110448,1736323846343,-2810.92507554,0.0001,2]
[348110449,1736323846470,-441.75790001,0.0001,2]
[348110450,1736323846571,-11694.11041374,0.0001,2]
[348110456,1736324518646,3837.5962009,0.0002,120]
[348110457,1736324583209,418.64258,0.0002,120]
[348110476,1736324868660,5597.02445199,0.0002,120]
[348110500,1736325031562,-300.0,7.999e-05,2]
[348110501,1736325031572,-175.22000005,8e-05,2]
[348110502,1736325031583,-4000.0000016,8e-05,2]
[348110503,1736325031595,-586.2,8e-05,2]
[348110504,1736325031620,-1139.57459929,8e-05,2]
[348110505,1736325031634,-1886.04784474,8e-05,2]
[348110506,1736325031645,-983.1350681,8e-05,2]
[348110507,1736325031686,-959.1177822,8e-05,2]
[348110508,1736325031696,-4014.06057664,8e-05,2]
[348110509,1736325031735,-14256.64412738,8e-05,2]
[348110510,1736325031745,-812.99,8.219e-05,2]
[348110511,1736325031754,-420.0,8.799e-05,2]
[348110512,1736325031764,-1000.0,9.031e-05,2]
[348110513,1736325031773,-250.0,9.048e-05,2]
[348110514,1736325031783,-713.52,9.064e-05,2]
[348110515,1736325031792,-1029.57,9.109e-05,2]
[348110516,1736325031802,-1450.68,9.15e-05,2]
[348110517,1736325031812,-218.08,9.306e-05,2]
[348110518,1736325031822,-150.0,9.444e-05,2]
[348110519,1736325031831,-186.45787987,9.444e-05,2]
[348110520,1736325031840,-150.0,9.444e-05,2]
[348110521,1736325031850,-150.0,9.444e-05,2]
[348110522,1736325031859,-739.0,9.509e-05,2]
[348110523,1736325031868,-587.0,9.679e-05,2]
[348110524,1736325031878,-501.0,9.753e-05,2]
[348110525,1736325031888,-150.0,9.897e-05,2]
[348110526,1736325031897,-191.5401,9.898e-05,2]